[Event "*** Titled Tuesday Blitz"]
[Site "Chess.com"]
[Date "2019.02.05"]
[Round "6"]
[White "vovachesss"]
[Black "BogdanDeac"]
[Result "0-1"]
[WhiteElo "2576"]
[BlackElo "2737"]
[TimeControl "180+2"]
[EndTime "14:26:06 PST"]
[Termination "BogdanDeac won by checkmate"]

1. e4 {[%clk 0:03:01.9]} 1... c5 {[%clk 0:02:59.3]} 2. d4 {[%clk 0:03:02.3]}
2... cxd4 {[%clk 0:03:00.1]} 3. c3 {[%clk 0:03:03.9]} 3... d3 {[%clk 0:03:00.4]}
4. Bxd3 {[%clk 0:03:04.9]} 4... g6 {[%clk 0:03:01.4]} 5. Nf3 {[%clk 0:03:06.4]}
5... Bg7 {[%clk 0:03:02]} 6. O-O {[%clk 0:03:08.3]} 6... Nc6 {[%clk 0:03:01.7]}
7. Qe2 {[%clk 0:03:10.2]} 7... d6 {[%clk 0:03:02.2]} 8. Nbd2 {[%clk 0:03:11.7]}
8... Nf6 {[%clk 0:03:00.5]} 9. Nc4 {[%clk 0:03:12.7]} 9... Nd7 {[%clk
0:02:59.6]} 10. h3 {[%clk 0:03:12.3]} 10... O-O {[%clk 0:03:00]} 11. Bf4 {[%clk
0:03:07.6]} 11... Nc5 {[%clk 0:02:59.8]} 12. Bc2 {[%clk 0:03:07.3]} 12... b5
{[%clk 0:03:00.1]} 13. Ne3 {[%clk 0:03:03.7]} 13... b4 {[%clk 0:03:00.9]} 14.
Nd5 {[%clk 0:02:49.7]} 14... bxc3 {[%clk 0:02:56.1]} 15. Nxc3 {[%clk 0:02:38]}
15... Ba6 {[%clk 0:02:56]} 16. Nb5 {[%clk 0:02:38.8]} 16... Qb6 {[%clk
0:02:45.7]} 17. a4 {[%clk 0:02:39.2]} 17... Nb4 {[%clk 0:02:46.6]} 18. Bg5
{[%clk 0:02:22.7]} 18... Rfe8 {[%clk 0:02:41.7]} 19. e5 {[%clk 0:02:09.5]} 19...
Bxb5 {[%clk 0:02:37.8]} 20. axb5 {[%clk 0:02:05.7]} 20... dxe5 {[%clk 0:02:38]}
21. Be3 {[%clk 0:02:02.4]} 21... Rac8 {[%clk 0:02:29.4]} 22. Rfc1 {[%clk
0:01:58.7]} 22... Qd6 {[%clk 0:02:19.3]} 23. Rxa7 {[%clk 0:01:37.1]} 23... e4
{[%clk 0:02:17.5]} 24. Ng5 {[%clk 0:01:11.9]} 24... Ncd3 {[%clk 0:02:14.3]} 25.
Bxd3 {[%clk 0:01:05.3]} 25... exd3 {[%clk 0:02:14.5]} 26. Qd2 {[%clk 0:00:54.2]}
26... Rxc1+ {[%clk 0:02:12.3]} 27. Qxc1 {[%clk 0:00:56.1]} 27... Nc2 {[%clk
0:02:13.8]} 28. Nf3 {[%clk 0:00:33.7]} 28... Qb4 {[%clk 0:02:11.2]} 29. Qd2
{[%clk 0:00:26.8]} 29... Qxb5 {[%clk 0:02:10.4]} 30. Ra5 {[%clk 0:00:21.3]}
30... Qxb2 {[%clk 0:02:08.1]} 31. Qxd3 {[%clk 0:00:22.5]} 31... Qb1+ {[%clk
0:02:02.6]} 32. Kh2 {[%clk 0:00:22.4]} 32... Qb8+ {[%clk 0:02:03.1]} 33. g3
{[%clk 0:00:18.7]} 33... Nxe3 {[%clk 0:02:03.2]} 34. Qxe3 {[%clk 0:00:20.6]}
34... Bf6 {[%clk 0:02:04.8]} 35. Kg2 {[%clk 0:00:21.5]} 35... Rd8 {[%clk
0:02:05]} 36. Ra3 {[%clk 0:00:21.1]} 36... Kg7 {[%clk 0:02:03.2]} 37. Rd3 {[%clk
0:00:22.4]} 37... Rc8 {[%clk 0:02:03.5]} 38. h4 {[%clk 0:00:23.4]} 38... h6
{[%clk 0:02:03.6]} 39. h5 {[%clk 0:00:23.9]} 39... g5 {[%clk 0:02:04]} 40. Qe4
{[%clk 0:00:25.1]} 40... Qb5 {[%clk 0:01:59.7]} 41. Nh2 {[%clk 0:00:21.6]} 41...
Rc4 {[%clk 0:01:59.4]} 42. Qf3 {[%clk 0:00:17.7]} 42... Qa6 {[%clk 0:01:51.1]}
43. Rd5 {[%clk 0:00:17.3]} 43... Rc3 {[%clk 0:01:47.3]} 44. Qe4 {[%clk
0:00:17.3]} 44... Rc1 {[%clk 0:01:46.7]} 45. Rd8 {[%clk 0:00:15.3]} 45... Qa1
{[%clk 0:01:29.1]} 46. Ng4 {[%clk 0:00:10.1]} 46... Rg1+ {[%clk 0:01:27.1]} 47.
Kh2 {[%clk 0:00:10.7]} 47... Re1 {[%clk 0:01:21.7]} 48. Qf5 {[%clk 0:00:06.9]}
48... Rh1+ {[%clk 0:01:19.3]} 49. Kg2 {[%clk 0:00:07.1]} 49... Rxh5 {[%clk
0:01:06]} 50. Nh2 {[%clk 0:00:06.3]} 50... e6 {[%clk 0:00:45.5]} 51. Qf3 {[%clk
0:00:02.8]} 51... Rxh2+ {[%clk 0:00:45.7]} 52. Kxh2 {[%clk 0:00:04.7]} 52...
Bxd8 {[%clk 0:00:47.2]} 53. Kg2 {[%clk 0:00:04.9]} 53... Bf6 {[%clk 0:00:47.3]}
54. Qb7 {[%clk 0:00:05.2]} 54... Qb2 {[%clk 0:00:46.7]} 55. Qc6 {[%clk
0:00:05.9]} 55... Bd4 {[%clk 0:00:47.7]} 56. Kh3 {[%clk 0:00:06]} 56... Qxf2
{[%clk 0:00:48]} 57. Qe4 {[%clk 0:00:06.8]} 57... Qf1+ {[%clk 0:00:48.5]} 58.
Kg4 {[%clk 0:00:04.3]} 58... f5+ {[%clk 0:00:47.8]} 59. Kh5 {[%clk 0:00:05.8]}
59... fxe4 {[%clk 0:00:47.5]} 60. g4 {[%clk 0:00:07.4]} 60... Kf6 {[%clk
0:00:45.5]} 61. Kxh6 {[%clk 0:00:07.4]} 61... e3 {[%clk 0:00:46.4]} 62. Kh7
{[%clk 0:00:08.5]} 62... Bc5 {[%clk 0:00:47.2]} 63. Kh6 {[%clk 0:00:09.3]} 63...
e2 {[%clk 0:00:49.1]} 64. Kh7 {[%clk 0:00:10.6]} 64... e1=Q {[%clk 0:00:50.1]}
65. Kg8 {[%clk 0:00:11.8]} 65... e5 {[%clk 0:00:52]} 66. Kh7 {[%clk 0:00:12.5]}
66... e4 {[%clk 0:00:53.9]} 67. Kg8 {[%clk 0:00:14.2]} 67... e3 {[%clk
0:00:55.8]} 68. Kh7 {[%clk 0:00:16.1]} 68... e2 {[%clk 0:00:57.7]} 69. Kg8
{[%clk 0:00:18]} 69... Qef2 {[%clk 0:00:59.6]} 70. Kh7 {[%clk 0:00:19.9]} 70...
e1=Q {[%clk 0:01:01.5]} 71. Kg8 {[%clk 0:00:21.8]} 71... Qee2 {[%clk 0:01:01.5]}
72. Kh7 {[%clk 0:00:23.7]} 72... Qxg4 {[%clk 0:01:02.2]} 73. Kg8 {[%clk
0:00:25.6]} 73... Qge2 {[%clk 0:00:59.8]} 74. Kh7 {[%clk 0:00:27.5]} 74... Bf8
{[%clk 0:00:58.1]} 75. Kg8 {[%clk 0:00:29.4]} 75... Bg7 {[%clk 0:00:58.5]} 76.
Kh7 {[%clk 0:00:31.3]} 76... g4 {[%clk 0:00:59.6]} 77. Kg8 {[%clk 0:00:32.1]}
77... g3 {[%clk 0:01:01.5]} 78. Kh7 {[%clk 0:00:34]} 78... g2 {[%clk 0:01:03.4]}
79. Kg8 {[%clk 0:00:33.2]} 79... g1=N {[%clk 0:01:03.6]} 80. Kh7 {[%clk
0:00:35.1]} 80... Nf3 {[%clk 0:01:04.3]} 81. Kg8 {[%clk 0:00:35.7]} 81... Qc4+
{[%clk 0:01:04.8]} 82. Kh7 {[%clk 0:00:37.1]} 82... Ng5# {[%clk 0:01:05.8]} 0-1

[Event "*** Titled Tuesday Blitz"]
[Site "Chess.com"]
[Date "2019.02.05"]
[Round "6"]
[White "WPWPWP-2015"]
[Black "HindsightIs2700"]
[Result "1-0"]
[WhiteElo "2331"]
[BlackElo "2260"]
[TimeControl "180+2"]
[EndTime "14:26:11 PST"]
[Termination "WPWPWP-2015 won on time"]

1. e4 {[%clk 0:03:01.9]} 1... c5 {[%clk 0:03:01]} 2. Nf3 {[%clk 0:03:02.2]} 2...
d6 {[%clk 0:03:01.3]} 3. Bb5+ {[%clk 0:03:02.6]} 3... Nd7 {[%clk 0:03:02.3]} 4.
c4 {[%clk 0:03:02.1]} 4... a6 {[%clk 0:03:00.6]} 5. Ba4 {[%clk 0:03:02.7]} 5...
Nf6 {[%clk 0:03:01.3]} 6. Nc3 {[%clk 0:03:03.2]} 6... g6 {[%clk 0:02:58.8]} 7.
O-O {[%clk 0:03:03.6]} 7... Bg7 {[%clk 0:02:59.9]} 8. Re1 {[%clk 0:03:04.3]}
8... O-O {[%clk 0:03:00.4]} 9. d4 {[%clk 0:03:02.4]} 9... cxd4 {[%clk 0:03:01]}
10. Nxd4 {[%clk 0:03:01]} 10... Qc7 {[%clk 0:02:43.1]} 11. Bxd7 {[%clk
0:02:59.4]} 11... Bxd7 {[%clk 0:02:41.4]} 12. Qd3 {[%clk 0:02:34.1]} 12... Rfc8
{[%clk 0:02:36.8]} 13. b3 {[%clk 0:02:29.3]} 13... b5 {[%clk 0:02:37.3]} 14. Nd5
{[%clk 0:02:25.7]} 14... Nxd5 {[%clk 0:02:37.9]} 15. cxd5 {[%clk 0:02:23.1]}
15... Qc3 {[%clk 0:02:33.2]} 16. Qxc3 {[%clk 0:02:21.1]} 16... Rxc3 {[%clk
0:02:34.3]} 17. Be3 {[%clk 0:01:45.9]} 17... Rac8 {[%clk 0:02:30.8]} 18. Red1
{[%clk 0:01:39.4]} 18... b4 {[%clk 0:02:15]} 19. h3 {[%clk 0:01:35.1]} 19... h5
{[%clk 0:02:11.4]} 20. Rab1 {[%clk 0:01:28.9]} 20... a5 {[%clk 0:01:40.8]} 21.
Kf1 {[%clk 0:01:20.4]} 21... a4 {[%clk 0:01:40.9]} 22. Ke1 {[%clk 0:01:13.9]}
22... a3 {[%clk 0:01:35.5]} 23. Bg5 {[%clk 0:00:38.4]} 23... Bxd4 {[%clk
0:01:19.4]} 24. Rxd4 {[%clk 0:00:38.2]} 24... f6 {[%clk 0:01:18.6]} 25. Be3
{[%clk 0:00:27]} 25... Rc2 {[%clk 0:01:16.2]} 26. Ra1 {[%clk 0:00:26.1]} 26...
Bb5 {[%clk 0:01:15.9]} 27. Rxb4 {[%clk 0:00:23.4]} 27... Re2+ {[%clk 0:01:17]}
28. Kd1 {[%clk 0:00:23.5]} 28... Ba6 {[%clk 0:00:52.2]} 29. Ra4 {[%clk
0:00:24.6]} 29... Bb5 {[%clk 0:00:51.3]} 30. Rb4 {[%clk 0:00:24.8]} 30... Ba6
{[%clk 0:00:52.4]} 31. Rc1 {[%clk 0:00:24.5]} 31... Rxc1+ {[%clk 0:00:49.1]} 32.
Kxc1 {[%clk 0:00:16.3]} 32... Rxa2 {[%clk 0:00:50]} 33. Ra4 {[%clk 0:00:08.9]}
33... Bd3 {[%clk 0:00:46.5]} 34. b4 {[%clk 0:00:05.8]} 34... Rc2+ {[%clk
0:00:35.8]} 35. Kd1 {[%clk 0:00:06.2]} 35... a2 {[%clk 0:00:37.2]} 36. Ra8+
{[%clk 0:00:06]} 36... Kg7 {[%clk 0:00:33.8]} 37. b5 {[%clk 0:00:05.8]} 37...
Rb2 {[%clk 0:00:29.8]} 38. Bc1 {[%clk 0:00:06]} 38... Rxf2 {[%clk 0:00:20.8]}
39. b6 {[%clk 0:00:05.5]} 39... Bxe4 {[%clk 0:00:05.4]} 40. b7 {[%clk
0:00:06.4]} 40... Rf1+ {[%clk 0:00:05.8]} 41. Kd2 {[%clk 0:00:06.9]} 41... Bxd5
{[%clk 0:00:04]} 42. b8=Q {[%clk 0:00:07.3]} 42... Bxa8 {[%clk 0:00:05.2]} 43.
Qxa8 {[%clk 0:00:08.7]} 43... Rf2+ {[%clk 0:00:05.4]} 44. Ke3 {[%clk 0:00:09.8]}
44... Rc2 {[%clk 0:00:06.2]} 45. Bd2 {[%clk 0:00:08.8]} 45... Rc5 {[%clk
0:00:05.3]} 46. Kd3 {[%clk 0:00:08.7]} 46... Rd5+ {[%clk 0:00:05.4]} 47. Kc2
{[%clk 0:00:08.4]} 47... Rc5+ {[%clk 0:00:05.3]} 48. Bc3 {[%clk 0:00:09.6]}
48... Rg5 {[%clk 0:00:05.5]} 49. g4 {[%clk 0:00:08]} 49... hxg4 {[%clk
0:00:05.8]} 50. Qxa2 {[%clk 0:00:08.3]} 50... gxh3 {[%clk 0:00:06.1]} 51. Qb1
{[%clk 0:00:08.7]} 51... Rg2+ {[%clk 0:00:06.3]} 52. Kd3 {[%clk 0:00:09.4]}
52... h2 {[%clk 0:00:07]} 53. Qh1 {[%clk 0:00:09.6]} 53... Rf2 {[%clk
0:00:04.3]} 54. Ke3 {[%clk 0:00:09.8]} 54... Rc2 {[%clk 0:00:05]} 55. Bd2 {[%clk
0:00:10.6]} 55... e5 {[%clk 0:00:03.7]} 56. Qxh2 {[%clk 0:00:11.3]} 56... d5
{[%clk 0:00:05.2]} 57. Qh1 {[%clk 0:00:11.2]} 57... Rc5 {[%clk 0:00:05.3]} 58.
Qb1 {[%clk 0:00:10.9]} 58... g5 {[%clk 0:00:04.9]} 59. Qb6 {[%clk 0:00:11.4]}
59... Rc4 {[%clk 0:00:03.9]} 60. Qb7+ {[%clk 0:00:12.4]} 60... Kg6 {[%clk
0:00:05.4]} 61. Qxd5 {[%clk 0:00:13.4]} 61... Rd4 {[%clk 0:00:07]} 62. Qg8+
{[%clk 0:00:14.1]} 62... Kf5 {[%clk 0:00:07.2]} 63. Qc8+ {[%clk 0:00:14.9]}
63... Kg6 {[%clk 0:00:08.3]} 64. Ke2 {[%clk 0:00:15.9]} 64... g4 {[%clk
0:00:08.5]} 65. Be3 {[%clk 0:00:16.1]} 65... Rd6 {[%clk 0:00:08.8]} 66. Qxg4+
{[%clk 0:00:16.3]} 66... Kf7 {[%clk 0:00:10.2]} 67. Qb4 {[%clk 0:00:16.8]} 67...
Re6 {[%clk 0:00:10.7]} 68. Qc4 {[%clk 0:00:17.2]} 68... Ke7 {[%clk 0:00:11.6]}
69. Bc5+ {[%clk 0:00:18.1]} 69... Kd7 {[%clk 0:00:13.2]} 70. Qd5+ {[%clk
0:00:19]} 1-0

[Event "*** Titled Tuesday Blitz"]
[Site "Chess.com"]
[Date "2019.02.05"]
[Round "6"]
[White "in_shambles"]
[Black "sandager"]
[Result "1/2-1/2"]
[WhiteElo "1998"]
[BlackElo "2115"]
[TimeControl "180+2"]
[EndTime "14:26:37 PST"]
[Termination "Game drawn by repetition"]

1. d4 {[%clk 0:03:01.9]} 1... Nf6 {[%clk 0:02:59.8]} 2. c4 {[%clk 0:03:02.6]}
2... g6 {[%clk 0:03:00.8]} 3. Nc3 {[%clk 0:03:04.1]} 3... d5 {[%clk 0:03:01.8]}
4. cxd5 {[%clk 0:03:04.3]} 4... Nxd5 {[%clk 0:03:02.6]} 5. e4 {[%clk 0:03:05.5]}
5... Nxc3 {[%clk 0:03:03.9]} 6. bxc3 {[%clk 0:03:07.1]} 6... Bg7 {[%clk
0:03:05.2]} 7. Nf3 {[%clk 0:03:08.7]} 7... c5 {[%clk 0:03:06.5]} 8. Rb1 {[%clk
0:03:06.8]} 8... O-O {[%clk 0:03:07.5]} 9. Be3 {[%clk 0:03:07]} 9... Nc6 {[%clk
0:03:07.8]} 10. Be2 {[%clk 0:03:08.5]} 10... cxd4 {[%clk 0:03:07.2]} 11. cxd4
{[%clk 0:03:09.4]} 11... Qa5+ {[%clk 0:03:07.4]} 12. Qd2 {[%clk 0:03:10.7]}
12... Qxd2+ {[%clk 0:03:07.9]} 13. Kxd2 {[%clk 0:03:11]} 13... Rd8 {[%clk
0:03:08.2]} 14. d5 {[%clk 0:03:03.3]} 14... e6 {[%clk 0:03:08.4]} 15. Rhd1
{[%clk 0:02:53.8]} 15... exd5 {[%clk 0:03:06.8]} 16. exd5 {[%clk 0:02:54.7]}
16... Rxd5+ {[%clk 0:03:06.4]} 17. Ke1 {[%clk 0:02:56.3]} 17... Rxd1+ {[%clk
0:03:05.2]} 18. Bxd1 {[%clk 0:02:57.7]} 18... b6 {[%clk 0:03:02.5]} 19. Ba4
{[%clk 0:02:54.6]} 19... Bb7 {[%clk 0:03:00]} 20. Rc1 {[%clk 0:02:55.9]} 20...
Ne5 {[%clk 0:02:45.5]} 21. Nxe5 {[%clk 0:02:46.2]} 21... Bxe5 {[%clk 0:02:44.8]}
22. g3 {[%clk 0:02:45.4]} 22... Rc8 {[%clk 0:02:42.2]} 23. Rd1 {[%clk
0:02:41.6]} 23... Bf3 {[%clk 0:02:34.6]} 24. Rd7 {[%clk 0:02:35.4]} 24... Rc7
{[%clk 0:02:07.1]} 25. Rd3 {[%clk 0:01:37.5]} 25... Kg7 {[%clk 0:02:05.4]} 26.
Kd2 {[%clk 0:01:32.4]} 26... Bc6 {[%clk 0:01:57.1]} 27. Bb3 {[%clk 0:01:30.9]}
27... Bb5 {[%clk 0:01:54.9]} 28. Rd8 {[%clk 0:01:23.4]} 28... Rd7+ {[%clk
0:01:55]} 29. Rxd7 {[%clk 0:01:24.3]} 29... Bxd7 {[%clk 0:01:56.4]} 30. Kd3
{[%clk 0:01:25.5]} 30... Bb5+ {[%clk 0:01:54.7]} 31. Ke4 {[%clk 0:01:24.8]}
31... Kf6 {[%clk 0:01:41.5]} 32. Kd5 {[%clk 0:01:20.4]} 32... Be2 {[%clk
0:01:37.2]} 33. f4 {[%clk 0:01:19.8]} 33... Bf3+ {[%clk 0:01:36.5]} 34. Kc4
{[%clk 0:01:18]} 34... Bb2 {[%clk 0:01:36]} 35. Kb5 {[%clk 0:01:18.2]} 35... Bb7
{[%clk 0:01:23.4]} 36. a4 {[%clk 0:01:12.1]} 36... Ke7 {[%clk 0:01:19.7]} 37. a5
{[%clk 0:01:02.5]} 37... bxa5 {[%clk 0:01:17.7]} 38. Bxa7 {[%clk 0:00:54.5]}
38... Bc3 {[%clk 0:01:16.9]} 39. Bb6 {[%clk 0:00:53.3]} 39... f6 {[%clk
0:01:14.3]} 40. Bxa5 {[%clk 0:00:46.8]} 40... Bd4 {[%clk 0:01:13.7]} 41. Bb4+
{[%clk 0:00:46]} 41... Ke8 {[%clk 0:01:09.9]} 42. Kc4 {[%clk 0:00:46.1]} 42...
Bg1 {[%clk 0:01:09.5]} 43. h3 {[%clk 0:00:46]} 43... Bf2 {[%clk 0:01:06.9]} 44.
g4 {[%clk 0:00:45.3]} 44... Bg2 {[%clk 0:01:05]} 45. Kd3 {[%clk 0:00:22.3]}
45... Bxh3 {[%clk 0:01:04.2]} 46. Ke2 {[%clk 0:00:21.4]} 46... Bb6 {[%clk
0:01:03]} 47. Kf3 {[%clk 0:00:22.6]} 47... f5 {[%clk 0:01:01.9]} 48. g5 {[%clk
0:00:22]} 48... Bg4+ {[%clk 0:01:02]} 49. Kg3 {[%clk 0:00:21.1]} 49... Bd8
{[%clk 0:01:02.4]} 50. Be6 {[%clk 0:00:21.5]} 50... Be7 {[%clk 0:01:02.6]} 51.
Bc3 {[%clk 0:00:21.9]} 51... Bf8 {[%clk 0:01:01.3]} 52. Bg8 {[%clk 0:00:22.8]}
52... h6 {[%clk 0:01:01]} 53. Bf6 {[%clk 0:00:22.8]} 53... hxg5 {[%clk
0:00:53.3]} 54. Bxg5 {[%clk 0:00:24.7]} 54... Be2 {[%clk 0:00:52]} 55. Be6
{[%clk 0:00:24.5]} 55... Be7 {[%clk 0:00:50.4]} 56. Bh6 {[%clk 0:00:21.5]} 56...
Bb5 {[%clk 0:00:48.3]} 57. Kf2 {[%clk 0:00:21.2]} 57... Bc5+ {[%clk 0:00:47.6]}
58. Kf3 {[%clk 0:00:21.4]} 58... Bc6+ {[%clk 0:00:47.7]} 59. Ke2 {[%clk
0:00:22.5]} 59... Bf8 {[%clk 0:00:48]} 60. Bg5 {[%clk 0:00:23.3]} 60... Bd7
{[%clk 0:00:48.6]} 61. Bd5 {[%clk 0:00:23.5]} 61... Be7 {[%clk 0:00:47]} 62. Bh6
{[%clk 0:00:24.3]} 62... Bf8 {[%clk 0:00:46.2]} 63. Bg5 {[%clk 0:00:25.3]} 63...
Bd6 {[%clk 0:00:45.2]} 64. Ke3 {[%clk 0:00:25.2]} 64... Kf8 {[%clk 0:00:45.2]}
65. Bh6+ {[%clk 0:00:25.3]} 65... Ke7 {[%clk 0:00:45.7]} 66. Bg5+ {[%clk
0:00:26.6]} 66... Ke8 {[%clk 0:00:47]} 67. Kd4 {[%clk 0:00:26.4]} 67... Bb5
{[%clk 0:00:44.4]} 68. Ke3 {[%clk 0:00:27.2]} 68... Bc5+ {[%clk 0:00:42.9]} 69.
Kf3 {[%clk 0:00:28.2]} 69... Kf8 {[%clk 0:00:41.3]} 70. Bh6+ {[%clk 0:00:28.5]}
70... Ke7 {[%clk 0:00:42.1]} 71. Bg5+ {[%clk 0:00:29.8]} 71... Kd6 {[%clk
0:00:42.8]} 72. Bf7 {[%clk 0:00:30.7]} 72... Bc6+ {[%clk 0:00:39.9]} 73. Kg3
{[%clk 0:00:31.8]} 73... Bd5 {[%clk 0:00:35.7]} 74. Bxg6 {[%clk 0:00:32.5]}
74... Ke6 {[%clk 0:00:36.5]} 75. Bh5 {[%clk 0:00:32.6]} 75... Bb4 {[%clk
0:00:36.8]} 76. Bf3 {[%clk 0:00:32.4]} 76... Be1+ {[%clk 0:00:37.1]} 77. Kg2
{[%clk 0:00:32.9]} 77... Bxf3+ {[%clk 0:00:37]} 78. Kxf3 {[%clk 0:00:34.8]}
78... Kd5 {[%clk 0:00:37.8]} 79. Ke2 {[%clk 0:00:34.8]} 79... Bc3 {[%clk
0:00:38.1]} 80. Kd3 {[%clk 0:00:35.6]} 80... Bd4 {[%clk 0:00:38.7]} 81. Bh6
{[%clk 0:00:34.7]} 81... Bc5 {[%clk 0:00:38.8]} 82. Bg5 {[%clk 0:00:35.6]} 82...
Bd4 {[%clk 0:00:39.3]} 83. Bh6 {[%clk 0:00:36.7]} 83... Bf6 {[%clk 0:00:39]} 84.
Ke3 {[%clk 0:00:34]} 84... Bd4+ {[%clk 0:00:39.3]} 85. Kd3 {[%clk 0:00:34.8]}
85... Bf6 {[%clk 0:00:40.4]} 86. Ke3 {[%clk 0:00:36]} 86... Bd4+ {[%clk
0:00:41]} 87. Kd3 {[%clk 0:00:37.3]} 87... Bb2 {[%clk 0:00:42]} 88. Bg5 {[%clk
0:00:37.2]} 88... Bd4 {[%clk 0:00:41.8]} 89. Bh6 {[%clk 0:00:38]} 1/2-1/2

[Event "*** Titled Tuesday Blitz"]
[Site "Chess.com"]
[Date "2019.02.05"]
[Round "6"]
[White "NMJeevanK"]
[Black "Zq1"]
[Result "1-0"]
[WhiteElo "2347"]
[BlackElo "2506"]
[TimeControl "180+2"]
[EndTime "14:26:40 PST"]
[Termination "NMJeevanK won by resignation"]

1. e4 {[%clk 0:03:01.9]} 1... c5 {[%clk 0:03:00.6]} 2. Nf3 {[%clk 0:03:02.7]}
2... d6 {[%clk 0:03:01]} 3. Bb5+ {[%clk 0:03:02.2]} 3... Bd7 {[%clk 0:03:01.8]}
4. Qe2 {[%clk 0:03:02.8]} 4... Nc6 {[%clk 0:03:02.4]} 5. c3 {[%clk 0:03:03.6]}
5... g6 {[%clk 0:03:03.3]} 6. O-O {[%clk 0:03:04.7]} 6... Bg7 {[%clk 0:03:04.1]}
7. Rd1 {[%clk 0:03:05.4]} 7... Nf6 {[%clk 0:03:05]} 8. d4 {[%clk 0:03:06.1]}
8... cxd4 {[%clk 0:03:05.9]} 9. cxd4 {[%clk 0:03:07.1]} 9... d5 {[%clk
0:03:03.8]} 10. exd5 {[%clk 0:03:04.8]} 10... Nxd5 {[%clk 0:03:04]} 11. Nc3
{[%clk 0:03:06.1]} 11... Nxc3 {[%clk 0:03:03.5]} 12. bxc3 {[%clk 0:03:07]} 12...
O-O {[%clk 0:03:04.3]} 13. Ba3 {[%clk 0:03:06.5]} 13... Re8 {[%clk 0:03:04.3]}
14. Rab1 {[%clk 0:03:03.4]} 14... e6 {[%clk 0:02:57.3]} 15. c4 {[%clk
0:02:49.1]} 15... a6 {[%clk 0:02:57.1]} 16. Ba4 {[%clk 0:02:47.4]} 16... Nxd4
{[%clk 0:02:48.8]} 17. Nxd4 {[%clk 0:02:30.2]} 17... Bxa4 {[%clk 0:02:48.5]} 18.
Nb3 {[%clk 0:02:21.5]} 18... Qc7 {[%clk 0:02:39]} 19. Bd6 {[%clk 0:02:22.2]}
19... Qc6 {[%clk 0:02:38.2]} 20. Na5 {[%clk 0:02:14.8]} 20... Bxd1 {[%clk
0:02:36.9]} 21. Qxd1 {[%clk 0:02:08.2]} 21... Qd7 {[%clk 0:02:35.1]} 22. Rxb7
{[%clk 0:02:06.3]} 22... Qc8 {[%clk 0:02:34.1]} 23. Qf3 {[%clk 0:02:02.1]} 23...
f6 {[%clk 0:02:12.3]} 24. c5 {[%clk 0:02:02.2]} 24... e5 {[%clk 0:02:07.3]} 25.
h4 {[%clk 0:01:13.3]} 25... Qe6 {[%clk 0:02:07.1]} 26. Nc6 {[%clk 0:01:08.7]}
26... e4 {[%clk 0:01:57.8]} 27. Qa3 {[%clk 0:00:51.8]} 27... Bf8 {[%clk
0:01:34.3]} 28. Bxf8 {[%clk 0:00:31.1]} 28... Qxc6 {[%clk 0:01:28.3]} 29. Rb6
{[%clk 0:00:25]} 29... Qd5 {[%clk 0:01:22.4]} 30. Bd6 {[%clk 0:00:21.6]} 30...
e3 {[%clk 0:01:18.1]} 31. fxe3 {[%clk 0:00:21.6]} 31... Re4 {[%clk 0:01:18]} 32.
g3 {[%clk 0:00:15.4]} 32... Rae8 {[%clk 0:01:17]} 33. Bf4 {[%clk 0:00:13.4]}
33... Rc4 {[%clk 0:01:11.8]} 34. Rxf6 {[%clk 0:00:03.6]} 34... Qd1+ {[%clk
0:00:54.4]} 35. Kh2 {[%clk 0:00:04]} 35... Rc2+ {[%clk 0:00:49.8]} 36. Kh3
{[%clk 0:00:05.4]} 36... Qf1+ {[%clk 0:00:48.5]} 37. Kg4 {[%clk 0:00:06.7]}
37... Qe2+ {[%clk 0:00:49.2]} 38. Kh3 {[%clk 0:00:04.9]} 38... Qc4 {[%clk
0:00:37.1]} 39. Qb3 {[%clk 0:00:04.8]} 39... Qxb3 {[%clk 0:00:36.3]} 40. axb3
{[%clk 0:00:06.7]} 40... Rxc5 {[%clk 0:00:37.4]} 41. Rxa6 {[%clk 0:00:07.9]}
41... Rb5 {[%clk 0:00:37.6]} 42. Ra3 {[%clk 0:00:07.8]} 42... Re7 {[%clk
0:00:36.5]} 43. Kg4 {[%clk 0:00:08.9]} 43... Rd7 {[%clk 0:00:34.2]} 44. Bh6
{[%clk 0:00:06.3]} 44... Kf7 {[%clk 0:00:35]} 45. e4 {[%clk 0:00:05.6]} 45...
Rdb7 {[%clk 0:00:32.7]} 46. Ra6 {[%clk 0:00:03.9]} 46... Rxb3 {[%clk 0:00:30.8]}
47. e5 {[%clk 0:00:05.4]} 47... R7b4+ {[%clk 0:00:29.3]} 48. Bf4 {[%clk
0:00:05.5]} 48... Rb6 {[%clk 0:00:29.5]} 49. Ra7+ {[%clk 0:00:06.5]} 49... Rb7
{[%clk 0:00:30.6]} 50. Ra6 {[%clk 0:00:08.1]} 50... R3b6 {[%clk 0:00:30.7]} 51.
Ra8 {[%clk 0:00:08.5]} 51... Kg7 {[%clk 0:00:30.4]} 52. Rd8 {[%clk 0:00:08.6]}
52... Rf7 {[%clk 0:00:30.4]} 53. h5 {[%clk 0:00:08.7]} 53... gxh5+ {[%clk
0:00:28.9]} 54. Kxh5 {[%clk 0:00:09]} 54... Rg6 {[%clk 0:00:29.2]} 55. Kh4
{[%clk 0:00:06.1]} 55... Re6 {[%clk 0:00:29.4]} 56. Kg4 {[%clk 0:00:05.9]} 56...
Kg6 {[%clk 0:00:29]} 57. Rg8+ {[%clk 0:00:06.4]} 57... Rg7 {[%clk 0:00:29.7]}
58. Rxg7+ {[%clk 0:00:08]} 58... Kxg7 {[%clk 0:00:31]} 59. Kf5 {[%clk
0:00:09.9]} 59... Kf7 {[%clk 0:00:32.4]} 60. Bg5 {[%clk 0:00:10]} 60... Rc6
{[%clk 0:00:32.3]} 61. Bf4 {[%clk 0:00:11.1]} 61... Rc5 {[%clk 0:00:32.8]} 62.
Kg5 {[%clk 0:00:11.6]} 62... Rc6 {[%clk 0:00:33.9]} 63. Kf5 {[%clk 0:00:12.7]}
63... Rg6 {[%clk 0:00:34.4]} 64. g4 {[%clk 0:00:13.1]} 64... Re6 {[%clk
0:00:35.2]} 65. g5 {[%clk 0:00:14.5]} 65... Rc6 {[%clk 0:00:36.1]} 66. Bg3
{[%clk 0:00:15.7]} 66... Ra6 {[%clk 0:00:36.7]} 67. Bf4 {[%clk 0:00:17.2]} 67...
Ra4 {[%clk 0:00:35.8]} 68. Be3 {[%clk 0:00:16.5]} 68... Ra5 {[%clk 0:00:36.5]}
69. Bf4 {[%clk 0:00:17.8]} 69... Ra1 {[%clk 0:00:34.4]} 70. Be3 {[%clk
0:00:18.8]} 70... Rf1+ {[%clk 0:00:35.1]} 71. Bf4 {[%clk 0:00:20]} 71... Ke7
{[%clk 0:00:36.1]} 72. Kg4 {[%clk 0:00:19.4]} 72... Ke6 {[%clk 0:00:36.9]} 73.
Bg3 {[%clk 0:00:18.6]} 73... Rg1 {[%clk 0:00:37.4]} 74. Kf4 {[%clk 0:00:16.1]}
74... Rg2 {[%clk 0:00:35.5]} 75. Kf3 {[%clk 0:00:14.9]} 75... Rg1 {[%clk
0:00:35.8]} 76. Kf4 {[%clk 0:00:16.2]} 76... Rf1+ {[%clk 0:00:36.3]} 77. Kg4
{[%clk 0:00:17.6]} 77... Ra1 {[%clk 0:00:37.1]} 78. Bh2 {[%clk 0:00:10.6]} 78...
Ra4+ {[%clk 0:00:37.4]} 79. Bf4 {[%clk 0:00:11.4]} 79... Rb4 {[%clk 0:00:37.5]}
80. Kf3 {[%clk 0:00:06.8]} 80... Kf5 {[%clk 0:00:38.5]} 81. Bd2 {[%clk
0:00:06.2]} 81... Kxe5 {[%clk 0:00:37.7]} 82. Bxb4 {[%clk 0:00:06.6]} 82... Kf5
{[%clk 0:00:36.4]} 83. Bd2 {[%clk 0:00:06.4]} 83... Ke5 {[%clk 0:00:37.1]} 84.
Kg4 {[%clk 0:00:07.7]} 84... Ke6 {[%clk 0:00:38.2]} 85. Kh5 {[%clk 0:00:08.8]}
85... Kf7 {[%clk 0:00:39.7]} 86. Kh6 {[%clk 0:00:09.2]} 86... Kg8 {[%clk
0:00:40.5]} 87. Bc3 {[%clk 0:00:10.5]} 1-0